[Event "*** Titled Tuesday Blitz"]
[Site "Chess.com"]
[Date "2020.04.21"]
[Round "1"]
[White "Willychess95"]
[Black "kingofkolkata"]
[Result "1-0"]
[WhiteElo "2584"]
[BlackElo "2229"]
[TimeControl "180+1"]
[EndTime "10:08:52 PDT"]
[Termination "Willychess95 won by checkmate"]

1. e4 {[%clk 0:03:00.2]} 1... e5 {[%clk 0:02:59.8]} 2. Nf3 {[%clk 0:02:59.6]}
2... Nc6 {[%clk 0:02:58.2]} 3. Bc4 {[%clk 0:02:59.9]} 3... Nf6 {[%clk
0:02:57.6]} 4. Ng5 {[%clk 0:02:59.1]} 4... d5 {[%clk 0:02:57.4]} 5. exd5 {[%clk
0:03:00]} 5... Na5 {[%clk 0:02:57.5]} 6. Bb5+ {[%clk 0:03:00.2]} 6... c6 {[%clk
0:02:57.8]} 7. dxc6 {[%clk 0:03:00.9]} 7... bxc6 {[%clk 0:02:58.7]} 8. Qf3
{[%clk 0:02:58.9]} 8... Be7 {[%clk 0:02:58.4]} 9. Bd3 {[%clk 0:02:58.4]} 9...
O-O {[%clk 0:02:47.8]} 10. Nc3 {[%clk 0:02:56.6]} 10... h6 {[%clk 0:02:47.2]}
11. Nge4 {[%clk 0:02:56.4]} 11... Nd5 {[%clk 0:02:47.4]} 12. Ng3 {[%clk
0:02:55.7]} 12... Nf4 {[%clk 0:02:42.6]} 13. Bf5 {[%clk 0:02:48.2]} 13... Bxf5
{[%clk 0:02:07.4]} 14. Nxf5 {[%clk 0:02:48.9]} 14... Bf6 {[%clk 0:01:56.9]} 15.
d3 {[%clk 0:02:45.6]} 15... Ng6 {[%clk 0:01:47.3]} 16. O-O {[%clk 0:02:39.9]}
16... Rc8 {[%clk 0:01:43.9]} 17. Ne4 {[%clk 0:02:38.4]} 17... Bg5 {[%clk
0:01:34.9]} 18. Be3 {[%clk 0:02:07.4]} 18... Nb7 {[%clk 0:01:29.3]} 19. Bxa7
{[%clk 0:01:57.5]} 19... c5 {[%clk 0:01:27.9]} 20. Nxg5 {[%clk 0:01:56.8]} 20...
hxg5 {[%clk 0:01:27.6]} 21. Qxb7 {[%clk 0:01:53.8]} 21... Rc7 {[%clk 0:00:48.1]}
22. Qb6 {[%clk 0:01:48.2]} 22... Qd7 {[%clk 0:00:48.2]} 23. Ne3 {[%clk
0:01:26.4]} 23... Rxa7 {[%clk 0:00:43.8]} 24. Qxc5 {[%clk 0:01:25]} 24... Rc8
{[%clk 0:00:42]} 25. Qb4 {[%clk 0:01:05.3]} 25... Rb7 {[%clk 0:00:42.1]} 26. Qa3
{[%clk 0:00:55.1]} 26... Ra7 {[%clk 0:00:42.1]} 27. Qb3 {[%clk 0:00:52.2]} 27...
Rb7 {[%clk 0:00:42.1]} 28. Qd5 {[%clk 0:00:49.1]} 28... Qxd5 {[%clk 0:00:40.7]}
29. Nxd5 {[%clk 0:00:50]} 29... Rxc2 {[%clk 0:00:31.8]} 30. b3 {[%clk 0:00:45]}
30... Rd7 {[%clk 0:00:27.7]} 31. Ne3 {[%clk 0:00:42.8]} 31... Rd2 {[%clk
0:00:26.7]} 32. Rfd1 {[%clk 0:00:42.7]} 32... R2xd3 {[%clk 0:00:25.6]} 33. Rxd3
{[%clk 0:00:42.3]} 33... Rxd3 {[%clk 0:00:26.5]} 34. b4 {[%clk 0:00:42.4]} 34...
Ra3 {[%clk 0:00:24.3]} 35. b5 {[%clk 0:00:42.4]} 35... Ne7 {[%clk 0:00:20.2]}
36. b6 {[%clk 0:00:39.3]} 36... Nc6 {[%clk 0:00:19.4]} 37. g3 {[%clk 0:00:33.4]}
37... Kh7 {[%clk 0:00:19.1]} 38. Rc1 {[%clk 0:00:33.3]} 38... Na5 {[%clk
0:00:13.5]} 39. Rc2 {[%clk 0:00:30.5]} 39... Kg6 {[%clk 0:00:12.3]} 40. g4
{[%clk 0:00:27.5]} 40... Nb7 {[%clk 0:00:10.9]} 41. Rc7 {[%clk 0:00:27]} 41...
Na5 {[%clk 0:00:07.1]} 42. b7 {[%clk 0:00:27.1]} 42... Nxb7 {[%clk 0:00:07.4]}
43. Rxb7 {[%clk 0:00:27.1]} 43... Rxa2 {[%clk 0:00:07.8]} 44. Rb6+ {[%clk
0:00:27.2]} 44... f6 {[%clk 0:00:08]} 45. Kg2 {[%clk 0:00:27.7]} 45... Ra4
{[%clk 0:00:07.8]} 46. h3 {[%clk 0:00:27.7]} 46... Rf4 {[%clk 0:00:07.6]} 47.
Rb7 {[%clk 0:00:27.3]} 47... Kh7 {[%clk 0:00:06.3]} 48. Nf5 {[%clk 0:00:27.3]}
48... Kh8 {[%clk 0:00:05.6]} 49. Nxg7 {[%clk 0:00:27.2]} 49... e4 {[%clk
0:00:05.1]} 50. Nf5 {[%clk 0:00:26.5]} 50... Rf3 {[%clk 0:00:03.5]} 51. Ne3
{[%clk 0:00:26.5]} 51... Rf4 {[%clk 0:00:03.4]} 52. Rb5 {[%clk 0:00:26.4]} 52...
Kg7 {[%clk 0:00:03.7]} 53. Rf5 {[%clk 0:00:26.6]} 53... Kg6 {[%clk 0:00:03.5]}
54. Kg3 {[%clk 0:00:25.9]} 54... Rxf5 {[%clk 0:00:03.4]} 55. Nxf5 {[%clk
0:00:26.8]} 55... Kf7 {[%clk 0:00:04.1]} 56. Nd6+ {[%clk 0:00:27.2]} 56... Ke6
{[%clk 0:00:04.2]} 57. Nxe4 {[%clk 0:00:28.1]} 57... Ke5 {[%clk 0:00:05.1]} 58.
Nd2 {[%clk 0:00:28.7]} 58... f5 {[%clk 0:00:05.4]} 59. gxf5 {[%clk 0:00:29.6]}
59... Kxf5 {[%clk 0:00:06.3]} 60. h4 {[%clk 0:00:29.9]} 60... gxh4+ {[%clk
0:00:06.4]} 61. Kxh4 {[%clk 0:00:30.8]} 61... Kf4 {[%clk 0:00:07]} 62. Kh3
{[%clk 0:00:31.7]} 62... Kf5 {[%clk 0:00:06.7]} 63. Kg3 {[%clk 0:00:32.6]} 63...
Ke5 {[%clk 0:00:07.6]} 64. f4+ {[%clk 0:00:32.8]} 64... Kf5 {[%clk 0:00:08.5]}
65. Kf3 {[%clk 0:00:33.3]} 65... Kf6 {[%clk 0:00:09]} 66. Ke4 {[%clk 0:00:33.6]}
66... Ke6 {[%clk 0:00:09.9]} 67. f5+ {[%clk 0:00:34.5]} 67... Kf6 {[%clk
0:00:10.8]} 68. Kf4 {[%clk 0:00:35.3]} 68... Kf7 {[%clk 0:00:11.3]} 69. Ke5
{[%clk 0:00:36.2]} 69... Ke7 {[%clk 0:00:12.2]} 70. f6+ {[%clk 0:00:37]} 70...
Kf7 {[%clk 0:00:13.1]} 71. Kf5 {[%clk 0:00:37.9]} 71... Kf8 {[%clk 0:00:13.5]}
72. Ke6 {[%clk 0:00:37.7]} 72... Ke8 {[%clk 0:00:14.4]} 73. f7+ {[%clk
0:00:38.3]} 73... Kf8 {[%clk 0:00:15.3]} 74. Nb3 {[%clk 0:00:39.1]} 74... Kg7
{[%clk 0:00:15.9]} 75. Ke7 {[%clk 0:00:40]} 75... Kg6 {[%clk 0:00:16.8]} 76.
f8=Q {[%clk 0:00:40.2]} 76... Kg5 {[%clk 0:00:16.3]} 77. Qf3 {[%clk 0:00:40.6]}
77... Kh4 {[%clk 0:00:17.2]} 78. Qg2 {[%clk 0:00:40.4]} 78... Kh5 {[%clk
0:00:17.1]} 79. Kf6 {[%clk 0:00:40.6]} 79... Kh4 {[%clk 0:00:17.8]} 80. Nc1
{[%clk 0:00:39.6]} 80... Kh5 {[%clk 0:00:18.7]} 81. Qg5# {[%clk 0:00:38.5]} 1-0

[Event "*** Titled Tuesday Blitz"]
[Site "Chess.com"]
[Date "2020.04.21"]
[Round "1"]
[White "ehrenfeld"]
[Black "abhijeetgupta1016"]
[Result "1/2-1/2"]
[WhiteElo "2472"]
[BlackElo "2916"]
[TimeControl "180+1"]
[EndTime "10:08:54 PDT"]
[Termination "Game drawn - insufficient material"]

1. e4 {[%clk 0:02:59.4]} 1... c5 {[%clk 0:02:58.9]} 2. d3 {[%clk 0:02:59.2]}
2... Nc6 {[%clk 0:02:57.5]} 3. f4 {[%clk 0:02:59.1]} 3... g6 {[%clk 0:02:56]} 4.
Nf3 {[%clk 0:02:59.1]} 4... Bg7 {[%clk 0:02:56.2]} 5. Be2 {[%clk 0:02:59.6]}
5... d6 {[%clk 0:02:54.9]} 6. O-O {[%clk 0:02:59.7]} 6... e6 {[%clk 0:02:54.5]}
7. c3 {[%clk 0:02:59]} 7... Nge7 {[%clk 0:02:54.4]} 8. Be3 {[%clk 0:02:58.9]}
8... O-O {[%clk 0:02:54.5]} 9. d4 {[%clk 0:02:58.6]} 9... b6 {[%clk 0:02:51.7]}
10. Nbd2 {[%clk 0:02:55.7]} 10... Bb7 {[%clk 0:02:51.1]} 11. a3 {[%clk
0:02:50.3]} 11... Rc8 {[%clk 0:02:49.8]} 12. b4 {[%clk 0:02:42.2]} 12... Qd7
{[%clk 0:02:30.5]} 13. Rc1 {[%clk 0:02:39]} 13... Rfd8 {[%clk 0:02:29.6]} 14.
Bd3 {[%clk 0:02:37.8]} 14... a6 {[%clk 0:02:21.7]} 15. Qe2 {[%clk 0:02:36.1]}
15... b5 {[%clk 0:02:14.5]} 16. Kh1 {[%clk 0:02:27.4]} 16... cxd4 {[%clk
0:02:08]} 17. cxd4 {[%clk 0:02:26.8]} 17... d5 {[%clk 0:02:08.1]} 18. e5 {[%clk
0:02:26.4]} 18... Nb8 {[%clk 0:02:05]} 19. Rc5 {[%clk 0:02:16.7]} 19... Nf5
{[%clk 0:02:02.3]} 20. Bf2 {[%clk 0:02:11.2]} 20... Bf8 {[%clk 0:02:02.1]} 21.
Rxc8 {[%clk 0:02:05.3]} 21... Rxc8 {[%clk 0:02:01.8]} 22. g4 {[%clk 0:02:04.7]}
22... Ne7 {[%clk 0:02:01.5]} 23. Nb3 {[%clk 0:01:59.6]} 23... Rc4 {[%clk
0:01:57.9]} 24. Nc5 {[%clk 0:01:58.6]} 24... Qc8 {[%clk 0:01:57.3]} 25. Bh4
{[%clk 0:01:49.1]} 25... Nbc6 {[%clk 0:01:55.3]} 26. Bf2 {[%clk 0:01:35.5]}
26... a5 {[%clk 0:01:52.4]} 27. bxa5 {[%clk 0:01:21.5]} 27... Nxa5 {[%clk
0:01:50]} 28. Nxb7 {[%clk 0:01:19.9]} 28... Qxb7 {[%clk 0:01:48.8]} 29. f5
{[%clk 0:01:16.1]} 29... exf5 {[%clk 0:01:28.1]} 30. gxf5 {[%clk 0:01:15.4]}
30... b4 {[%clk 0:01:26.7]} 31. axb4 {[%clk 0:01:02.9]} 31... Rxb4 {[%clk
0:01:27.6]} 32. fxg6 {[%clk 0:00:55.8]} 32... hxg6 {[%clk 0:01:24.9]} 33. e6
{[%clk 0:00:51.3]} 33... f6 {[%clk 0:01:19.8]} 34. Rg1 {[%clk 0:00:39.4]} 34...
Rb2 {[%clk 0:01:19.7]} 35. Qe3 {[%clk 0:00:38.9]} 35... Nc4 {[%clk 0:01:19.5]}
36. Qf4 {[%clk 0:00:16.7]} 36... Rxf2 {[%clk 0:01:02.1]} 37. Qxf6 {[%clk
0:00:16.2]} 37... Rxf3 {[%clk 0:00:25.9]} 38. Qxf3 {[%clk 0:00:15.9]} 38... Nd6
{[%clk 0:00:25.8]} 39. Bxg6 {[%clk 0:00:13.9]} 39... Nxg6 {[%clk 0:00:22]} 40.
Rxg6+ {[%clk 0:00:13.8]} 40... Bg7 {[%clk 0:00:22.6]} 41. h3 {[%clk 0:00:08.8]}
41... Qb1+ {[%clk 0:00:19.8]} 42. Rg1 {[%clk 0:00:03.7]} 42... Qf5 {[%clk
0:00:15.2]} 43. Qxf5 {[%clk 0:00:03.2]} 43... Nxf5 {[%clk 0:00:16.1]} 44. Rg5
{[%clk 0:00:03.3]} 44... Ne7 {[%clk 0:00:13.8]} 45. Kg2 {[%clk 0:00:03]} 45...
Kf8 {[%clk 0:00:14.3]} 46. Rg4 {[%clk 0:00:03.3]} 46... Nc6 {[%clk 0:00:11.6]}
47. Rf4+ {[%clk 0:00:03.4]} 47... Ke8 {[%clk 0:00:11.5]} 48. Rf7 {[%clk
0:00:03.7]} 48... Bxd4 {[%clk 0:00:11.2]} 49. Rd7 {[%clk 0:00:04.3]} 49... Nb4
{[%clk 0:00:09.9]} 50. Kf3 {[%clk 0:00:03.8]} 50... Bf6 {[%clk 0:00:09]} 51. Kg4
{[%clk 0:00:03.9]} 51... Be7 {[%clk 0:00:05]} 52. Kf5 {[%clk 0:00:03.8]} 52...
Bc5 {[%clk 0:00:03.5]} 53. h4 {[%clk 0:00:03.6]} 53... d4 {[%clk 0:00:03.9]} 54.
h5 {[%clk 0:00:03.9]} 54... Nc6 {[%clk 0:00:02.6]} 55. h6 {[%clk 0:00:03.6]}
55... Ne7+ {[%clk 0:00:03.2]} 56. Ke4 {[%clk 0:00:03.3]} 56... Ng6 {[%clk
0:00:01.7]} 57. h7 {[%clk 0:00:03.5]} 57... Be7 {[%clk 0:00:01.5]} 58. Rxd4
{[%clk 0:00:02.8]} 58... Kf8 {[%clk 0:00:01.6]} 59. Rd5 {[%clk 0:00:02.9]} 59...
Kg7 {[%clk 0:00:01.9]} 60. Rh5 {[%clk 0:00:03.4]} 60... Nh8 {[%clk 0:00:02.2]}
61. Kf5 {[%clk 0:00:03.4]} 61... Bf6 {[%clk 0:00:01.9]} 62. Rh3 {[%clk
0:00:02.6]} 62... Bd4 {[%clk 0:00:01.1]} 63. e7 {[%clk 0:00:02.6]} 63... Kf7
{[%clk 0:00:01.2]} 64. Rg3 {[%clk 0:00:03]} 64... Kxe7 {[%clk 0:00:01.8]} 65.
Rg8 {[%clk 0:00:03.2]} 65... Kf7 {[%clk 0:00:02.7]} 66. Rxh8 {[%clk 0:00:03.6]}
66... Bxh8 {[%clk 0:00:03.3]} 67. Kf4 {[%clk 0:00:03.2]} 67... Kg7 {[%clk
0:00:04.2]} 68. Kf5 {[%clk 0:00:03.6]} 68... Kh6 {[%clk 0:00:05.1]} 69. Kf4
{[%clk 0:00:03.5]} 69... Kxh7 {[%clk 0:00:06]} 1/2-1/2

[Event "*** Titled Tuesday Blitz"]
[Site "Chess.com"]
[Date "2020.04.21"]
[Round "1"]
[White "MathiasWomacka"]
[Black "rasmussvane"]
[Result "0-1"]
[WhiteElo "2452"]
[BlackElo "2879"]
[TimeControl "180+1"]
[EndTime "10:09:12 PDT"]
[Termination "rasmussvane won by resignation"]

1. e4 {[%clk 0:03:00]} 1... c6 {[%clk 0:03:00.1]} 2. d4 {[%clk 0:02:58.9]} 2...
d5 {[%clk 0:03:01]} 3. Nd2 {[%clk 0:02:59]} 3... dxe4 {[%clk 0:03:01.2]} 4. Nxe4
{[%clk 0:02:59.9]} 4... Nf6 {[%clk 0:03:02]} 5. Nxf6+ {[%clk 0:02:59.9]} 5...
exf6 {[%clk 0:03:02.9]} 6. Bc4 {[%clk 0:02:59.9]} 6... Bd6 {[%clk 0:03:03.4]} 7.
Qe2+ {[%clk 0:02:59.9]} 7... Be7 {[%clk 0:03:03.8]} 8. Nf3 {[%clk 0:02:59.2]}
8... O-O {[%clk 0:03:04.3]} 9. O-O {[%clk 0:02:59.7]} 9... Bd6 {[%clk
0:03:04.9]} 10. Re1 {[%clk 0:02:59.3]} 10... Na6 {[%clk 0:03:03.8]} 11. Bd2
{[%clk 0:02:50.2]} 11... Nc7 {[%clk 0:03:03.4]} 12. Qe4 {[%clk 0:02:37.7]} 12...
f5 {[%clk 0:02:40.2]} 13. Qh4 {[%clk 0:02:22.5]} 13... Qxh4 {[%clk 0:02:39.8]}
14. Nxh4 {[%clk 0:02:23.4]} 14... Bd7 {[%clk 0:02:34.3]} 15. Nf3 {[%clk
0:02:18.9]} 15... h6 {[%clk 0:02:16.9]} 16. a4 {[%clk 0:02:04.1]} 16... Rad8
{[%clk 0:02:15.4]} 17. a5 {[%clk 0:02:03.5]} 17... Be6 {[%clk 0:02:12.9]} 18.
Bxe6 {[%clk 0:01:55.4]} 18... Nxe6 {[%clk 0:02:13.8]} 19. c4 {[%clk 0:01:48.6]}
19... Rd7 {[%clk 0:02:10.4]} 20. Bc3 {[%clk 0:01:45.7]} 20... Rfd8 {[%clk
0:02:10.1]} 21. a6 {[%clk 0:01:17.3]} 21... b6 {[%clk 0:02:08.9]} 22. d5 {[%clk
0:01:11.6]} 22... cxd5 {[%clk 0:02:06.5]} 23. cxd5 {[%clk 0:01:12.5]} 23... Nc7
{[%clk 0:02:06.5]} 24. Nd4 {[%clk 0:01:12]} 24... Nxd5 {[%clk 0:01:59.4]} 25.
Nxf5 {[%clk 0:01:11.7]} 25... Nxc3 {[%clk 0:01:58.1]} 26. Nxd6 {[%clk
0:01:09.5]} 26... Rxd6 {[%clk 0:01:47.8]} 27. bxc3 {[%clk 0:01:08.8]} 27... R6d7
{[%clk 0:01:48.3]} 28. Kf1 {[%clk 0:01:07.1]} 28... Rc8 {[%clk 0:01:47.1]} 29.
Re3 {[%clk 0:01:03.4]} 29... g6 {[%clk 0:01:42.4]} 30. Ke2 {[%clk 0:01:01.4]}
30... Rc5 {[%clk 0:01:41.8]} 31. Rd3 {[%clk 0:00:53.9]} 31... Re5+ {[%clk
0:01:38.4]} 32. Kd2 {[%clk 0:00:53.2]} 32... Rde7 {[%clk 0:01:38.2]} 33. Re3
{[%clk 0:00:40.4]} 33... Rxe3 {[%clk 0:01:38]} 34. fxe3 {[%clk 0:00:41.2]} 34...
Kf8 {[%clk 0:01:38]} 35. Ra4 {[%clk 0:00:41]} 35... Rc7 {[%clk 0:01:36.8]} 36.
Kd3 {[%clk 0:00:34.6]} 36... Rc5 {[%clk 0:01:36.9]} 37. e4 {[%clk 0:00:25.9]}
37... Ke7 {[%clk 0:01:23.7]} 38. Kd4 {[%clk 0:00:26.1]} 38... Kd6 {[%clk
0:01:22.2]} 39. Ra2 {[%clk 0:00:25.9]} 39... Ke6 {[%clk 0:01:13.7]} 40. g3
{[%clk 0:00:24]} 40... Rc6 {[%clk 0:01:11.6]} 41. c4 {[%clk 0:00:20.9]} 41... h5
{[%clk 0:01:08.7]} 42. h4 {[%clk 0:00:13.3]} 42... Rc7 {[%clk 0:01:08.3]} 43.
Ra3 {[%clk 0:00:11.8]} 43... f6 {[%clk 0:01:06.8]} 44. Ra2 {[%clk 0:00:10.7]}
44... Rc5 {[%clk 0:01:06.7]} 45. Ra3 {[%clk 0:00:10.1]} 45... Kd6 {[%clk
0:01:03.9]} 46. Ra2 {[%clk 0:00:10]} 46... Ke7 {[%clk 0:00:57.5]} 47. Ra3 {[%clk
0:00:09.6]} 47... Ke6 {[%clk 0:00:57.8]} 48. Ra2 {[%clk 0:00:09.7]} 48... Rc7
{[%clk 0:00:55.4]} 49. Ra3 {[%clk 0:00:09.8]} 49... Rd7+ {[%clk 0:00:55.3]} 50.
Ke3 {[%clk 0:00:08.8]} 50... Rd8 {[%clk 0:00:51]} 51. Rd3 {[%clk 0:00:06.7]}
51... Rxd3+ {[%clk 0:00:24.1]} 52. Kxd3 {[%clk 0:00:07.6]} 52... Kd6 {[%clk
0:00:24.3]} 53. Kd4 {[%clk 0:00:07.2]} 53... Kc6 {[%clk 0:00:24.4]} 54. e5
{[%clk 0:00:07.2]} 54... fxe5+ {[%clk 0:00:25.3]} 55. Kxe5 {[%clk 0:00:07.8]}
55... Kc5 {[%clk 0:00:25.9]} 56. Kf6 {[%clk 0:00:07.3]} 56... Kxc4 {[%clk
0:00:26.4]} 57. Kxg6 {[%clk 0:00:07.6]} 57... b5 {[%clk 0:00:26.9]} 58. Kxh5
{[%clk 0:00:07.7]} 58... b4 {[%clk 0:00:26.4]} 59. g4 {[%clk 0:00:08.2]} 59...
b3 {[%clk 0:00:26.6]} 60. g5 {[%clk 0:00:09.1]} 60... b2 {[%clk 0:00:26.8]} 61.
g6 {[%clk 0:00:09.4]} 61... b1=Q {[%clk 0:00:27.1]} 62. Kh6 {[%clk 0:00:10.1]}
62... Qb6 {[%clk 0:00:21.1]} 63. h5 {[%clk 0:00:09.7]} 63... Qxa6 {[%clk
0:00:19.7]} 64. Kh7 {[%clk 0:00:09.8]} 64... Qb7+ {[%clk 0:00:16.1]} 65. g7
{[%clk 0:00:09.5]} 65... Qf7 {[%clk 0:00:14.4]} 66. h6 {[%clk 0:00:07.9]} 66...
Kd4 {[%clk 0:00:08.8]} 67. Kh8 {[%clk 0:00:07.9]} 67... Qf6 {[%clk 0:00:08.3]}
68. Kh7 {[%clk 0:00:06.5]} 68... Qf5+ {[%clk 0:00:06.9]} 69. Kh8 {[%clk
0:00:06.5]} 69... Qe5 {[%clk 0:00:06.5]} 70. Kh7 {[%clk 0:00:06.1]} 70... Qe4+
{[%clk 0:00:06.7]} 71. Kh8 {[%clk 0:00:06.1]} 71... Qe5 {[%clk 0:00:07.2]} 72.
Kh7 {[%clk 0:00:06.2]} 72... Qf5+ {[%clk 0:00:07.4]} 73. Kh8 {[%clk 0:00:06.1]}
73... Qf6 {[%clk 0:00:07.6]} 74. Kh7 {[%clk 0:00:06]} 74... Qf7 {[%clk
0:00:07.4]} 75. Kh8 {[%clk 0:00:05.8]} 75... Qg6 {[%clk 0:00:07.3]} 76. g8=Q
{[%clk 0:00:04.8]} 76... Qxh6+ {[%clk 0:00:07.1]} 77. Qh7 {[%clk 0:00:05]} 77...
Qxh7+ {[%clk 0:00:07.3]} 78. Kxh7 {[%clk 0:00:05.9]} 78... a5 {[%clk 0:00:08]}
0-1

[Event "*** Titled Tuesday Blitz"]
[Site "Chess.com"]
[Date "2020.04.21"]
[Round "1"]
[White "plumalka"]
[Black "VincentKeymer"]
[Result "1-0"]
[WhiteElo "2405"]
[BlackElo "2727"]
[TimeControl "180+1"]
[EndTime "10:09:14 PDT"]
[Termination "plumalka won by resignation"]

1. e4 {[%clk 0:03:00.9]} 1... e6 {[%clk 0:02:56.6]} 2. d4 {[%clk 0:03:00.5]}
2... d5 {[%clk 0:02:55]} 3. Nc3 {[%clk 0:03:00.7]} 3... Bb4 {[%clk 0:02:53.6]}
4. Qd3 {[%clk 0:03:00.1]} 4... dxe4 {[%clk 0:02:52]} 5. Qxe4 {[%clk 0:03:01]}
5... Nf6 {[%clk 0:02:51.6]} 6. Qh4 {[%clk 0:03:01]} 6... O-O {[%clk 0:02:46.1]}
7. Bg5 {[%clk 0:02:59.1]} 7... h6 {[%clk 0:02:37.5]} 8. Bxf6 {[%clk 0:02:57.8]}
8... Qxf6 {[%clk 0:02:38]} 9. Qxf6 {[%clk 0:02:57.3]} 9... gxf6 {[%clk
0:02:38.9]} 10. O-O-O {[%clk 0:02:53.9]} 10... Nd7 {[%clk 0:02:38.5]} 11. g4
{[%clk 0:02:43.7]} 11... c5 {[%clk 0:02:28.7]} 12. Nb5 {[%clk 0:02:18.9]} 12...
cxd4 {[%clk 0:02:25.6]} 13. Nxd4 {[%clk 0:02:17.2]} 13... Ne5 {[%clk 0:02:24]}
14. h3 {[%clk 0:02:10.3]} 14... Ng6 {[%clk 0:02:14.3]} 15. Nge2 {[%clk
0:02:06.4]} 15... e5 {[%clk 0:02:11.9]} 16. Nf5 {[%clk 0:01:52.6]} 16... Ne7
{[%clk 0:01:50.3]} 17. Neg3 {[%clk 0:01:43]} 17... Nxf5 {[%clk 0:01:44.4]} 18.
gxf5 {[%clk 0:01:43.1]} 18... Rb8 {[%clk 0:01:35.8]} 19. Rg1 {[%clk 0:01:42.9]}
19... Kh8 {[%clk 0:01:32.5]} 20. Bc4 {[%clk 0:01:40.8]} 20... Be7 {[%clk
0:01:28.5]} 21. Rde1 {[%clk 0:01:18.7]} 21... b5 {[%clk 0:01:26.9]} 22. Bd3
{[%clk 0:01:14.2]} 22... Bb7 {[%clk 0:01:22.6]} 23. Nh5 {[%clk 0:01:08]} 23...
a6 {[%clk 0:01:14.9]} 24. f4 {[%clk 0:01:03.3]} 24... Bf3 {[%clk 0:01:04.7]} 25.
Be2 {[%clk 0:00:49.9]} 25... Bd5 {[%clk 0:01:03.1]} 26. fxe5 {[%clk 0:00:48.5]}
26... fxe5 {[%clk 0:01:03.3]} 27. f6 {[%clk 0:00:48.7]} 27... Bc5 {[%clk
0:01:03.4]} 28. Rg7 {[%clk 0:00:47.3]} 28... e4 {[%clk 0:00:52.9]} 29. Bg4
{[%clk 0:00:45.4]} 29... Rfe8 {[%clk 0:00:19.3]} 30. Nf4 {[%clk 0:00:31.9]}
30... Bxa2 {[%clk 0:00:16.3]} 31. Bf5 {[%clk 0:00:27.1]} 31... Re5 {[%clk
0:00:16]} 32. Bg6 {[%clk 0:00:20.6]} 32... e3 {[%clk 0:00:13.2]} 33. Bxf7 {[%clk
0:00:18.9]} 33... Bxf7 {[%clk 0:00:13.1]} 34. Rxf7 {[%clk 0:00:19.6]} 34... Rg8
{[%clk 0:00:13.3]} 35. Nd3 {[%clk 0:00:15.9]} 35... Rd5 {[%clk 0:00:09.9]} 36.
Nxc5 {[%clk 0:00:14.5]} 36... Rxc5 {[%clk 0:00:10.5]} 37. Rxe3 {[%clk 0:00:15]}
37... Rg1+ {[%clk 0:00:10.9]} 38. Kd2 {[%clk 0:00:15.5]} 38... Rg2+ {[%clk
0:00:11.2]} 39. Re2 {[%clk 0:00:12.9]} 39... Rxe2+ {[%clk 0:00:10.1]} 40. Kxe2
{[%clk 0:00:13.8]} 40... Rxc2+ {[%clk 0:00:10.7]} 41. Kd3 {[%clk 0:00:14.6]}
41... Rxb2 {[%clk 0:00:10.9]} 42. Ra7 {[%clk 0:00:14.5]} 42... Kg8 {[%clk
0:00:08.9]} 43. Ke4 {[%clk 0:00:14.6]} 43... Ra2 {[%clk 0:00:07.6]} 44. Kf5
{[%clk 0:00:14.6]} 44... a5 {[%clk 0:00:08]} 45. Kg6 {[%clk 0:00:14.6]} 45...
Rg2+ {[%clk 0:00:07.1]} 46. Kxh6 {[%clk 0:00:14.9]} 46... a4 {[%clk 0:00:06.5]}
47. Rb7 {[%clk 0:00:13.2]} 47... a3 {[%clk 0:00:05.7]} 48. Rxb5 {[%clk
0:00:13.2]} 48... a2 {[%clk 0:00:06.2]} 49. Ra5 {[%clk 0:00:13.7]} 49... Kf7
{[%clk 0:00:06.7]} 50. Ra6 {[%clk 0:00:13.7]} 50... Rh2 {[%clk 0:00:06.2]} 51.
Kg5 {[%clk 0:00:13]} 51... Rg2+ {[%clk 0:00:06.5]} 52. Kf5 {[%clk 0:00:12.4]}
52... Rf2+ {[%clk 0:00:07]} 53. Kg5 {[%clk 0:00:12.6]} 53... Re2 {[%clk
0:00:06.9]} 54. Kf5 {[%clk 0:00:12.3]} 54... Rf2+ {[%clk 0:00:06.7]} 55. Ke4
{[%clk 0:00:12.5]} 55... Rg2 {[%clk 0:00:07.6]} 56. Kf3 {[%clk 0:00:11.6]} 56...
Rh2 {[%clk 0:00:07.9]} 57. h4 {[%clk 0:00:11.8]} 57... Rc2 {[%clk 0:00:08.2]}
58. h5 {[%clk 0:00:11.6]} 58... Rh2 {[%clk 0:00:07.2]} 59. Kg4 {[%clk
0:00:11.8]} 59... Rg2+ {[%clk 0:00:07.1]} 60. Kf5 {[%clk 0:00:12.2]} 60... Rh2
{[%clk 0:00:07.4]} 61. Kg5 {[%clk 0:00:12.5]} 61... Rg2+ {[%clk 0:00:07.1]} 62.
Kh6 {[%clk 0:00:12.2]} 62... Rh2 {[%clk 0:00:06.7]} 63. Kg5 {[%clk 0:00:12.3]}
63... Rf2 {[%clk 0:00:05.7]} 64. h6 {[%clk 0:00:11.7]} 64... Rg2+ {[%clk
0:00:05.9]} 65. Kf5 {[%clk 0:00:11.4]} 65... Rf2+ {[%clk 0:00:06.3]} 66. Kg4
{[%clk 0:00:11.8]} 66... Rg2+ {[%clk 0:00:06.5]} 67. Kf3 {[%clk 0:00:12.1]}
67... Rh2 {[%clk 0:00:06.8]} 68. Kg3 {[%clk 0:00:12]} 68... Rxh6 {[%clk
0:00:07]} 69. Rxa2 {[%clk 0:00:11.8]} 69... Rg6+ {[%clk 0:00:07.9]} 70. Kf4
{[%clk 0:00:11.6]} 70... Rxf6+ {[%clk 0:00:08.2]} 71. Ke5 {[%clk 0:00:12]} 71...
Re6+ {[%clk 0:00:08.4]} 72. Kd5 {[%clk 0:00:12.4]} 72... Re7 {[%clk 0:00:08.5]}
73. Rf2+ {[%clk 0:00:11.9]} 73... Ke8 {[%clk 0:00:08.8]} 74. Kd6 {[%clk
0:00:11.3]} 74... Rd7+ {[%clk 0:00:08.7]} 75. Ke6 {[%clk 0:00:11.4]} 75... Rb7
{[%clk 0:00:08.8]} 76. Rh2 {[%clk 0:00:10.4]} 76... Rb6+ {[%clk 0:00:09.2]} 77.
Kd5 {[%clk 0:00:10.8]} 77... Kd7 {[%clk 0:00:09.4]} 78. Kc5 {[%clk 0:00:10.9]}
78... Rd6 {[%clk 0:00:09.2]} 79. Rh7+ {[%clk 0:00:10.9]} 79... Ke6 {[%clk
0:00:08.9]} 80. Rh6+ {[%clk 0:00:11.3]} 80... Ke5 {[%clk 0:00:09]} 81. Rxd6
{[%clk 0:00:12.2]} 81... Ke4 {[%clk 0:00:06.5]} 82. Rd5 {[%clk 0:00:11.8]} 1-0